lending/lending_fUSD_20240206
["ID","MTS","AMOUNT","RATE_DAILY","PERIOD"]
[313342004,1707177887421,-150.00054172,0.00043,120]
[313342005,1707177898299,-1000.0,0.00033151,120]
[313342015,1707178162292,222.1,0.0002042,2]
[313342023,1707178231731,-162.83714396,0.00022679,2]
[313342024,1707178231740,-155.0,0.00022679,2]
[313342025,1707178231749,-1002.61988141,0.00022679,2]
[313342026,1707178231761,-2721.46652155,0.00022679,2]
[313342027,1707178231785,-3794.87603789,0.00022679,2]
[313342028,1707178231797,-1073.57869219,0.00022679,2]
[313342029,1707178231808,-723.29357829,0.00022679,2]
[313342030,1707178231820,-1249.68551363,0.00022679,2]
[313342031,1707178231829,-282.44990199,0.00022679,2]
[313342032,1707178231838,-290.05366865,0.0002268,2]
[313342033,1707178231847,-547.31405406,0.0002268,2]
[313342034,1707178231868,-798.60983619,0.0002268,2]
[313342035,1707178231897,-2935.73026678,0.0002268,2]
[313342036,1707178231909,-7.04843343,0.0002268,2]
[313342037,1707178231919,-1058.49967465,0.0002268,2]
[313342038,1707178231931,-3478.52231643,0.0002268,2]
[313342039,1707178231940,-266.46430983,0.00022681,2]
[313342040,1707178231950,-155.0,0.00022681,2]
[313342041,1707178231959,-700.50971645,0.00022681,2]
[313342042,1707178231969,-639.66864273,0.00022682,2]
[313342043,1707178231978,-229.18896052,0.00022682,2]
[313342044,1707178231987,-222.1,0.00022684,2]
[313342045,1707178231997,-150.0,0.00022747,2]
[313342046,1707178232007,-154.16,0.0002275,2]
[313342048,1707178232016,-280.13227264,0.00022766,2]
[313342050,1707178232026,-756.85744404,0.000228,2]
[313342051,1707178232035,-578.38,0.000228,2]
[313342052,1707178232045,-342.76188401,0.00022897,2]
[313342053,1707178232054,-583.66541534,0.00022898,2]
[313342054,1707178232064,-988.258,0.00022899,2]
[313342055,1707178232073,-191.2697,0.00022899,2]
[313342056,1707178232082,-13453.00061878,0.000229,2]
[313342057,1707178232092,-168.12312928,0.000229,2]
[313342058,1707178232101,-153.09455358,0.000229,2]
[313342059,1707178232111,-256.02018741,0.000229,2]
[313342060,1707178232120,-1360.29282026,0.000229,2]
[313342061,1707178232129,-1224.73711253,0.000229,2]
[313342062,1707178232138,-6669.37265668,0.000229,2]
[313342063,1707178232148,-291.78297824,0.000229,2]
[313342064,1707178232158,-178.0909694,0.000229,2]
[313342065,1707178232169,-537.4350766,0.000229,2]
[313342066,1707178232179,-250.0,0.00022927,2]
[313342067,1707178232188,-549.66,0.00022927,2]
[313342068,1707178232197,-529.55966464,0.0002299,2]
[313342069,1707178232206,-529.55966464,0.0002299,2]
[313342070,1707178232215,-529.55966464,0.0002299,2]
[313342071,1707178232225,-258.47501316,0.00022996,2]
[313342072,1707178232236,-16741.63297747,0.00022996,2]
[313342073,1707178232245,-155.0,0.00022996,2]
[313342074,1707178232255,-314.40306534,0.00022996,2]
[313342075,1707178232264,-155.17807555,0.00022996,2]
[313342076,1707178232274,-163.03748184,0.00022996,2]
[313342077,1707178232283,-155.4231818,0.00022996,2]
[313342078,1707178232292,-312.17935994,0.00022996,2]
[313342079,1707178232301,-578.6637511,0.00022996,2]
[313342080,1707178232310,-524.31366153,0.00022996,2]
[313342081,1707178232319,-487.54545682,0.00022996,2]
[313342082,1707178232329,-270.83268122,0.00022996,2]
[313342083,1707178232338,-265.23406397,0.00022996,2]
[313342084,1707178232347,-161.81736275,0.00022996,2]
[313342085,1707178232356,-200.0,0.00022996,2]
[313342086,1707178232365,-265.15535623,0.00022996,2]
[313342087,1707178232374,-155.31861112,0.00022996,2]
[313342088,1707178232383,-1021.96607554,0.00022996,2]
[313342089,1707178232392,-295.78388584,0.00022996,2]
[313342090,1707178232402,-155.0,0.00022996,2]
[313342091,1707178232410,-221.19960985,0.00022996,2]
[313342092,1707178232419,-196.9846735,0.00022996,2]
[313342093,1707178232429,-256.56027218,0.00022996,2]
[313342094,1707178232438,-341.54331615,0.00022996,2]
[313342095,1707178232447,-203.25070225,0.00022996,2]
[313342096,1707178232458,-474.4092373,0.00022996,2]
[313342097,1707178232467,-156.36940979,0.00022996,2]
[313342098,1707178232476,-155.56075,0.00022996,2]
[313342099,1707178232485,-447.89292513,0.00022996,2]
[313342100,1707178232495,-155.0,0.00022997,2]
[313342101,1707178232504,-2494.0097813,0.00022998,2]
[313342102,1707178232513,-188.46860847,0.00022998,2]
[313342103,1707178232522,-838.53372,0.00022998,2]
[313342104,1707178232531,-155.0,0.00022998,2]
[313342105,1707178232540,-1813.68084069,0.00022998,2]
[313342106,1707178232549,-2323.45228506,0.00022998,2]
[313342107,1707178232558,-316.90563559,0.00022998,2]
[313342108,1707178232567,-19286.39903277,0.00022998,2]
[313342109,1707178232576,-1049.62997136,0.00022998,2]
[313342110,1707178232587,-41459.50778193,0.00022998,2]
[313342111,1707178232598,-338.46264997,0.00022998,2]
[313342112,1707178232608,-625.89989292,0.00022998,2]
[313342113,1707178232618,-1060.55480173,0.00022999,2]
[313342114,1707178232628,-341.83071978,0.00022999,2]
[313342115,1707178232638,-155.0,0.00022999,2]
[313342116,1707178232649,-165.14434528,0.00022999,2]
[313342117,1707178232659,-499.99,0.00022999,2]
[313342118,1707178232670,-69076.19080158,0.00022999,2]
[313342119,1707178232681,-500.0,0.00022999,2]
[313342120,1707178232691,-500.0,0.00022999,2]
[313342121,1707178232700,-500.0,0.00022999,2]
[313342122,1707178232709,-366.53633639,0.00022999,2]
[313342123,1707178232718,-500.0,0.00022999,2]
[313342124,1707178232728,-500.21111136,0.00022999,2]
[313342125,1707178232737,-500.0,0.00022999,2]
[313342126,1707178232746,-500.0,0.00022999,2]
[313342127,1707178232755,-500.0,0.00022999,2]
[313342128,1707178232764,-500.0,0.00022999,2]
[313342129,1707178232772,-500.0,0.00022999,2]
[313342130,1707178232781,-163.67306634,0.00022999,2]
[313342131,1707178232791,-500.0,0.00022999,2]
[313342132,1707178232800,-500.0,0.00022999,2]
[313342133,1707178232809,-500.0,0.00022999,2]
[313342134,1707178232819,-204.590005,0.00022999,2]
[313342135,1707178232828,-500.0,0.00022999,2]
[313342136,1707178232837,-500.0,0.00022999,2]
[313342137,1707178232847,-500.0,0.00022999,2]
[313342138,1707178232856,-205.46237988,0.00022999,2]
[313342139,1707178232866,-500.0,0.00022999,2]
[313342140,1707178232876,-500.0,0.00022999,2]
[313342141,1707178232886,-500.0,0.00022999,2]
[313342142,1707178232895,-500.0,0.00022999,2]
[313342143,1707178232905,-346.35365603,0.00022999,2]
[313342144,1707178232922,-500.0,0.00022999,2]
[313342145,1707178232937,-500.0,0.00022999,2]
[313342146,1707178232952,-500.0,0.00022999,2]
[313342147,1707178232965,-500.0,0.00022999,2]
[313342148,1707178232979,-500.0,0.00022999,2]
[313342149,1707178232992,-500.0,0.00022999,2]
[313342150,1707178233002,-500.0,0.00022999,2]
[313342151,1707178233013,-500.0,0.00022999,2]
[313342152,1707178233024,-500.0,0.00022999,2]
[313342153,1707178233037,-500.0,0.00022999,2]
[313342154,1707178233048,-500.0,0.00022999,2]
[313342155,1707178233061,-500.0,0.00022999,2]
[313342156,1707178233073,-500.0,0.00022999,2]
[313342157,1707178233085,-500.0,0.00022999,2]
[313342158,1707178233098,-500.0,0.00022999,2]
[313342159,1707178233110,-500.0,0.00022999,2]
[313342160,1707178233122,-500.0,0.00022999,2]
[313342161,1707178233135,-500.0,0.00022999,2]
[313342162,1707178233147,-500.0,0.00022999,2]
[313342163,1707178233158,-500.0,0.00022999,2]
[313342164,1707178233173,-500.0,0.00022999,2]
[313342165,1707178233185,-500.0,0.00022999,2]
[313342166,1707178233196,-500.0,0.00022999,2]
[313342167,1707178233209,-500.0,0.00022999,2]
[313342168,1707178233221,-500.0,0.00022999,2]
[313342169,1707178233232,-500.0,0.00022999,2]
[313342170,1707178233245,-500.0,0.00022999,2]
[313342171,1707178233259,-500.0,0.00022999,2]
[313342172,1707178233271,-500.0,0.00022999,2]
[313342173,1707178233283,-500.0,0.00022999,2]
[313342174,1707178233294,-500.0,0.00022999,2]
[313342175,1707178233305,-500.0,0.00022999,2]
[313342176,1707178233315,-500.0,0.00022999,2]
[313342177,1707178233326,-500.0,0.00022999,2]
[313342178,1707178233339,-500.0,0.00022999,2]
[313342179,1707178233351,-500.0,0.00022999,2]
[313342180,1707178233364,-500.0,0.00022999,2]
[313342181,1707178233377,-500.0,0.00022999,2]
[313342182,1707178233389,-500.0,0.00022999,2]
[313342183,1707178233401,-500.0,0.00022999,2]
[313342184,1707178233412,-500.0,0.00022999,2]
[313342185,1707178233423,-500.0,0.00022999,2]
[313342186,1707178233433,-500.0,0.00022999,2]
[313342187,1707178233445,-494.25176716,0.00022999,2]
[313342188,1707178233456,-500.0,0.00022999,2]
[313342189,1707178233468,-500.0,0.00022999,2]
[313342190,1707178233479,-500.0,0.00022999,2]
[313342191,1707178233491,-500.0,0.00022999,2]
[313342192,1707178233502,-500.0,0.00022999,2]
[313342193,1707178233513,-500.0,0.00022999,2]
[313342194,1707178233525,-500.0,0.00022999,2]
[313342195,1707178233537,-518.70690011,0.00022999,2]
[313342196,1707178233549,-500.0,0.00022999,2]
[313342197,1707178233561,-500.0,0.00022999,2]
[313342198,1707178233573,-500.0,0.00022999,2]
[313342199,1707178233584,-500.0,0.00022999,2]
[313342200,1707178233594,-500.0,0.00022999,2]
[313342201,1707178233605,-500.0,0.00022999,2]
[313342202,1707178233615,-374.12537868,0.00022999,2]
[313342203,1707178233627,-500.0,0.00022999,2]
[313342204,1707178233637,-500.0,0.00022999,2]
[313342205,1707178233648,-500.0,0.00022999,2]
[313342206,1707178233659,-500.0,0.00022999,2]
[313342207,1707178233670,-500.0,0.00022999,2]
[313342208,1707178233681,-500.0,0.00022999,2]
[313342209,1707178233691,-500.0,0.00022999,2]
[313342210,1707178233702,-500.0,0.00022999,2]
[313342211,1707178233714,-500.0,0.00022999,2]
[313342212,1707178233726,-500.0,0.00022999,2]
[313342213,1707178233736,-366.53633639,0.00022999,2]
[313342214,1707178233746,-500.0,0.00022999,2]
[313342215,1707178233757,-500.0,0.00022999,2]
[313342216,1707178233767,-500.0,0.00022999,2]
[313342217,1707178233777,-500.0,0.00022999,2]
[313342218,1707178233787,-500.0,0.00022999,2]
[313342219,1707178233797,-500.0,0.00022999,2]
[313342220,1707178233808,-500.0,0.00022999,2]
[313342221,1707178233818,-500.0,0.00022999,2]
[313342222,1707178233828,-230.38216996,0.00022999,2]
[313342223,1707178233839,-500.0,0.00022999,2]
[313342224,1707178233850,-500.0,0.00022999,2]
[313342225,1707178233862,-500.0,0.00022999,2]
[313342226,1707178233873,-599.23696652,0.00022999,2]
[313342227,1707178233883,-500.0,0.00022999,2]
[313342228,1707178233894,-346.35365604,0.00022999,2]
[313342229,1707178233904,-500.0,0.00022999,2]
[313342230,1707178233914,-500.0,0.00022999,2]
[313342231,1707178233924,-500.0,0.00022999,2]
[313342232,1707178233934,-500.0,0.00022999,2]
[313342233,1707178233945,-500.0,0.00022999,2]
[313342234,1707178233955,-500.0,0.00022999,2]
[313342235,1707178233966,-443.86345925,0.00022999,2]
[313342236,1707178233982,-500.0,0.00022999,2]
[313342237,1707178233994,-500.0,0.00022999,2]
[313342238,1707178234005,-300.0,0.00022999,2]
[313342239,1707178234017,-500.0,0.00022999,2]
[313342240,1707178234030,-155.98243032,0.00022999,2]
[313342241,1707178234051,-344.01756968,0.00022999,2]
[313342242,1707178234061,-436.29076674,0.00022999,2]
[313342243,1707178234073,-500.0,0.00022999,2]
[313342244,1707178234083,-500.0,0.00022999,2]
[313342245,1707178234094,-500.0,0.00022999,2]
[313342246,1707178234105,-529.14628606,0.00022999,2]
[313342247,1707178234116,-500.0,0.00022999,2]
[313342248,1707178234127,-500.0,0.00022999,2]
[313342249,1707178234138,-500.0,0.00022999,2]
[313342250,1707178234149,-500.0,0.00022999,2]
[313342251,1707178234160,-539.28794358,0.00022999,2]
[313342252,1707178234173,-500.0,0.00022999,2]
[313342253,1707178234184,-500.0,0.00022999,2]
[313342254,1707178234194,-172.43456917,0.00022999,2]
[313342255,1707178234206,-500.0,0.00022999,2]
[313342256,1707178234217,-500.0,0.00022999,2]
[313342257,1707178234227,-500.0,0.00022999,2]
[313342258,1707178234238,-500.0,0.00022999,2]
[313342259,1707178234251,-500.0,0.00022999,2]
[313342260,1707178234262,-500.0,0.00022999,2]
[313342261,1707178234272,-95.67318555,0.00022999,2]
[313342262,1707178234287,-404.32681445,0.00022999,2]
[313342263,1707178234298,-57.10735617,0.00022999,2]
[313342264,1707178234316,-442.89264383,0.00022999,2]
[313342265,1707178234327,-500.0,0.00022999,2]
[313342266,1707178234338,-217.61958851,0.00022999,2]
[313342267,1707178234352,-282.38041149,0.00022999,2]
[313342268,1707178234362,-637.67996577,0.00022999,2]
[313342269,1707178234373,-500.0,0.00022999,2]
[313342270,1707178234384,-300.18674231,0.00022999,2]
[313342282,1707178237949,-199.81325769,0.00022999,2]
[313342283,1707178237959,-500.0,0.00022999,2]
[313342284,1707178237968,-500.0,0.00022999,2]
[313342285,1707178237977,-331.86457563,0.00022999,2]
[313342286,1707178237987,-500.0,0.00022999,2]
[313342287,1707178237995,-39.55826156,0.00022999,2]
[313342288,1707178238007,-460.44173844,0.00022999,2]
[313342289,1707178238016,-267.65841798,0.00022999,2]
[313342290,1707178238027,-232.34158202,0.00022999,2]
[313342291,1707178238037,-500.0,0.00022999,2]
[313342292,1707178238046,-8.93565753,0.00022999,2]
[313342293,1707178238058,-420.8888349,0.00022999,2]
[313342294,1707178238069,-70.17550757,0.00022999,2]
[313342295,1707178238078,-226.03473776,0.00022999,2]
[313342296,1707178238090,-273.96526224,0.00022999,2]
[313342297,1707178238099,-200.0,0.00022999,2]
[313342298,1707178238108,-164.07665828,0.00022999,2]
[313342299,1707178238117,-500.0,0.00022999,2]
[313342300,1707178238127,-325.0828896,0.00022999,2]
[313342301,1707178238136,-500.0,0.00022999,2]
[313342302,1707178238145,-500.0,0.00022999,2]
[313342303,1707178238154,-500.0,0.00022999,2]
[313342304,1707178238165,-445.19664355,0.00022999,2]
[313342305,1707178238176,-11415.34825279,0.00023,2]
[313342306,1707178238188,-25368.6983075,0.00023,2]
[313342309,1707178238240,-786.5464571,0.00023,2]
[313342310,1707178238252,-349.19474161,0.00023,2]
[313342311,1707178238267,-12550.00132184,0.00023,2]
[313342312,1707178238279,-3011.86184696,0.00023,2]
[313342313,1707178238295,-23264.48108566,0.00023,2]
[313342314,1707178238305,-11075.27955681,0.00023,2]
[313342315,1707178238316,-33155.87308399,0.00023,2]
[313342316,1707178238327,-63272.65680341,0.00023,2]
[313342317,1707178238346,-54025.7332903,0.00023,2]
[313342327,1707178240350,-175.15972697,0.00022998,2]
[313342328,1707178240359,-393.21356695,0.00023,2]
[313342329,1707178240371,-4252.18336365,0.00023,2]
[313342330,1707178240383,-250.0,0.00023,2]
[313342331,1707178240405,-344.82806146,0.00023,2]
[313342332,1707178240416,-404.42345137,0.00023,2]
[313342333,1707178240427,-2348.815,0.00023,2]
[313342334,1707178240441,-2126.22263882,0.00023,2]
[313342335,1707178240513,-8199.38884502,0.00023,2]
[313342336,1707178240592,-479.2135521,0.00023,2]
[313342337,1707178240608,-1224.42110464,0.00023,2]
[313342338,1707178241216,-4300679.0109691,0.00023,2]
[313342339,1707178241226,-2292963.24330355,0.00023,2]
[313342347,1707178244424,-155.0,0.00022998,2]
[313342348,1707178244435,-164.32499968,0.00022999,2]
[313342350,1707178244477,-73.67770039,0.00022999,2]
[313342352,1707178244486,-369.1779844,0.00022999,2]
[313342354,1707178244495,-500.0,0.00022999,2]
[313342356,1707178244505,-500.0,0.00022999,2]
[313342358,1707178244514,-500.0,0.00022999,2]
[313342360,1707178244524,-500.0,0.00022999,2]
[313342361,1707178244534,-500.0,0.00022999,2]
[313342362,1707178244543,-500.0,0.00022999,2]
[313342363,1707178244552,-500.0,0.00022999,2]
[313342364,1707178244561,-500.0,0.00022999,2]
[313342365,1707178244571,-469.45407096,0.00022999,2]
[313342366,1707178244580,-500.0,0.00022999,2]
[313342367,1707178244589,-500.0,0.00022999,2]
[313342368,1707178244598,-500.0,0.00022999,2]
[313342369,1707178244607,-500.0,0.00022999,2]
[313342370,1707178244617,-500.0,0.00022999,2]
[313342371,1707178244626,-193.14017467,0.00022999,2]
[313342372,1707178244635,-269.59857669,0.00022999,2]
[313342373,1707178244644,-500.0,0.00022999,2]
[313342374,1707178244653,-500.0,0.00022999,2]
[313342375,1707178244662,-638.66129259,0.00022999,2]
[313342376,1707178244672,-500.0,0.00022999,2]
[313342377,1707178244681,-500.0,0.00022999,2]
[313342378,1707178244694,-500.0,0.00022999,2]
[313342379,1707178244703,-500.0,0.00022999,2]
[313342380,1707178244713,-470.12088732,0.00022999,2]
[313342381,1707178244723,-500.0,0.00022999,2]
[313342382,1707178244732,-177.56881172,0.00022999,2]
[313342383,1707178244751,-292.00643514,0.00022998,2]
[313342384,1707178244760,-322.43118828,0.00022999,2]
[313342385,1707178244770,-500.0,0.00022999,2]
[313342386,1707178244779,-281.85616917,0.00022999,2]
[313342387,1707178244788,-159.62328108,0.00022999,2]
[313342388,1707178244800,-340.37671892,0.00022999,2]
[313342390,1707178244809,-500.0,0.00022999,2]
[313342392,1707178244819,-500.0,0.00022999,2]
[313342393,1707178244828,-294.97617126,0.00022999,2]
[313342395,1707178244838,-500.0,0.00022999,2]
[313342397,1707178244847,-500.0,0.00022999,2]
[313342399,1707178244857,-500.0,0.00022999,2]
[313342401,1707178244866,-500.0,0.00022999,2]
[313342403,1707178244875,-500.0,0.00022999,2]
[313342405,1707178244885,-500.0,0.00022999,2]
[313342407,1707178244894,-500.0,0.00022999,2]
[313342409,1707178244904,-500.0,0.00022999,2]
[313342411,1707178244913,-500.0,0.00022999,2]
[313342413,1707178244923,-500.0,0.00022999,2]
[313342415,1707178244932,-500.0,0.00022999,2]
[313342416,1707178244941,-335.41187779,0.00022999,2]
[313342418,1707178244950,-500.0,0.00022999,2]
[313342420,1707178244960,-10498.79227273,0.00023,2]
[313342421,1707178244972,-1471.99970644,0.00023,2]
[313342422,1707178244991,-282.57226758,0.00023,2]
[313342426,1707178245874,-271.38167914,0.00022998,2]
[313342427,1707178245884,-4008.26119389,0.00023,2]
[313342442,1707178517124,348.43,0.00022105,2]
[313342443,1707178649904,339.24,0.00020224,2]
[313342444,1707178650118,339.24,0.00022488,2]
[313342445,1707178747705,250.0,0.00022061,2]
[313342446,1707178789818,166.86,0.0002202,2]
[313342447,1707178853401,243.39486812,0.000225,2]
[313342448,1707178875044,1123.25,0.00022203,2]
[313342449,1707178875716,497.18487823,0.000225,2]
[313342450,1707178876321,639.66864273,0.000225,2]
[313342451,1707178904438,250.0,0.00022146,2]
[313342452,1707178930644,3400.0,0.000228,8]
[313342453,1707178932763,6800.0,0.000229,8]
[313342454,1707178950837,639.66864273,0.000225,2]
[313342455,1707178958541,172.05497837,0.000225,2]
[313342456,1707179022793,157.53,0.00022217,2]
[313342457,1707179022992,157.53,0.00022383,2]
[313342458,1707179045328,216.95,0.00021983,2]
[313342459,1707179119316,320.4,0.00020047,2]
[313342460,1707179119526,320.4,0.00022311,2]
[313342461,1707179174346,250.0,0.00021973,2]
[313342462,1707179198202,152.17140298,0.00022446,2]
[313342463,1707179231507,2800.0,0.000228,8]
[313342464,1707179233640,5700.0,0.000229,8]
[313342465,1707179274685,1000.0,0.00022033,2]
[313342466,1707179297371,972.26,0.00022016,2]
[313342471,1707179424701,150.0,0.00021994,2]
[313342481,1707179432048,-229.18896052,0.00022534,2]
[313342482,1707179432058,-639.66864273,0.00022535,2]
[313342483,1707179432068,-157.53,0.00022548,2]
[313342484,1707179432079,-157.53,0.00022714,2]
[313342485,1707179432089,-2659.36429675,0.00022767,2]
[313342486,1707179432103,-268.4268511,0.00022767,2]
[313342487,1707179432169,-1609.23084323,0.00022767,2]
[313342488,1707179432179,-242.47664776,0.00022768,2]
[313342489,1707179432189,-172.00705587,0.00022768,2]
[313342490,1707179432199,-501.42306486,0.00022768,2]
[313342491,1707179432208,-150.0,0.00022769,2]
[313342492,1707179432219,-1589.798777,0.0002277,2]
[313342493,1707179432233,-3798.55110975,0.0002277,2]
[313342494,1707179432245,-1416.6029188,0.0002277,2]
[313342502,1707179437978,-65736.45648785,0.0002277,2]
[313342503,1707179437991,-3031.5907066,0.0002277,2]
[313342504,1707179438002,-164.77,0.00022836,2]
[313342505,1707179438012,-1206.28045111,0.00022836,2]
[313342506,1707179438023,-1506.61948755,0.00022836,2]
[313342509,1707179438834,-1251.38715086,0.00022836,2]
[313342510,1707179438845,-1541.09121438,0.00022836,2]
[313342511,1707179438864,-1595.5016961,0.00022836,2]
[313342512,1707179438873,-432.85038205,0.00022877,2]
[313342513,1707179438896,-297.88961795,0.00022877,2]
[313342514,1707179438905,-157.53,0.00022879,2]
[313342515,1707179438915,-499.99,0.00022885,2]
[313342516,1707179438924,-733.74,0.00022886,2]
[313342517,1707179438933,-276.98181205,0.00022898,2]
[313342518,1707179438945,-1017.28008795,0.00022898,2]
[313342519,1707179438955,-7629.63191205,0.00022898,2]
[313342524,1707179440578,-2105.08548795,0.00022898,2]
[313342525,1707179440589,-331.74795107,0.00022898,2]
[313342526,1707179440601,-1026.28265926,0.00022898,2]
[313342527,1707179440614,-1918.43,0.00022898,2]
[313342528,1707179440641,-452.63,0.00022898,2]
[313342529,1707179440698,-2297.65756068,0.00022898,2]
[313342530,1707179440712,-10201.94652899,0.00022898,2]
[313342531,1707179440722,-703.5619,0.00022898,2]
[313342532,1707179440734,-717.19,0.00022899,2]
[313342533,1707179440743,-717.24,0.00022899,2]
[313342534,1707179440752,-736.9,0.00022899,2]
[313342535,1707179440761,-202.3411797,0.000229,2]
[313342536,1707179440772,-13240.16720691,0.000229,2]
[313342537,1707179440783,-153.14054586,0.000229,2]
[313342538,1707179440791,-241.37,0.00022959,2]
[313342539,1707179440801,-185.03290775,0.00022988,2]
[313342540,1707179440810,-731.66,0.00022996,2]
[313342541,1707179440819,-736.89,0.00022997,2]
[313342542,1707179440829,-736.82,0.00022997,2]
[313342543,1707179440838,-265.20878323,0.00022998,2]
[313342544,1707179440847,-364.46004184,0.00022998,2]
[313342545,1707179440857,-1237.66807554,0.00022998,2]
[313342546,1707179440868,-155.29733389,0.00022998,2]
[313342547,1707179440879,-10577.85156286,0.00022998,2]
[313342548,1707179440889,-66748.10286125,0.00022998,2]
[313342549,1707179440912,-604992.71824428,0.00022998,2]
[313342550,1707179440922,-263.96909699,0.00022998,2]
[313342551,1707179440931,-693.80629593,0.00022999,2]
[313342552,1707179440941,-269.06081898,0.00022999,2]
[313342553,1707179440951,-161.01777235,0.00022999,2]
[313342554,1707179440959,-4115.84311153,0.00022999,2]
[313342555,1707179440968,-203.4600671,0.00022999,2]
[313342556,1707179440977,-300.0,0.00022999,2]
[313342557,1707179440986,-300.0,0.00022999,2]
[313342558,1707179440995,-300.0,0.00022999,2]
[313342559,1707179441004,-300.0,0.00022999,2]
[313342560,1707179441013,-500.0,0.00022999,2]
[313342561,1707179441022,-500.0,0.00022999,2]
[313342562,1707179441031,-491.4178035,0.00022999,2]
[313342563,1707179441040,-500.0,0.00022999,2]
[313342564,1707179441049,-500.0,0.00022999,2]
[313342565,1707179441058,-500.0,0.00022999,2]
[313342566,1707179441067,-500.0,0.00022999,2]
[313342567,1707179441076,-500.0,0.00022999,2]
[313342568,1707179441084,-500.0,0.00022999,2]
[313342569,1707179441093,-500.0,0.00022999,2]
[313342570,1707179441102,-500.0,0.00022999,2]
[313342571,1707179441111,-500.0,0.00022999,2]
[313342572,1707179441120,-500.0,0.00022999,2]
[313342573,1707179441129,-500.0,0.00022999,2]
[313342574,1707179441138,-500.0,0.00022999,2]
[313342575,1707179441146,-500.0,0.00022999,2]
[313342576,1707179441155,-500.0,0.00022999,2]
[313342577,1707179441164,-500.0,0.00022999,2]
[313342578,1707179441173,-500.0,0.00022999,2]
[313342579,1707179441182,-500.0,0.00022999,2]
[313342580,1707179441191,-500.0,0.00022999,2]
[313342581,1707179441200,-500.0,0.00022999,2]
[313342582,1707179441210,-500.0,0.00022999,2]
[313342583,1707179441218,-500.0,0.00022999,2]
[313342584,1707179441227,-500.0,0.00022999,2]
[313342585,1707179441237,-500.0,0.00022999,2]
[313342586,1707179441246,-500.0,0.00022999,2]
[313342587,1707179441255,-500.0,0.00022999,2]
[313342588,1707179441264,-500.0,0.00022999,2]
[313342589,1707179441274,-500.0,0.00022999,2]
[313342590,1707179441283,-500.0,0.00022999,2]
[313342591,1707179441292,-500.0,0.00022999,2]
[313342592,1707179441302,-500.0,0.00022999,2]
[313342593,1707179441310,-500.0,0.00022999,2]
[313342594,1707179441320,-621.7796896,0.00022999,2]
[313342595,1707179441329,-500.0,0.00022999,2]
[313342596,1707179441338,-500.0,0.00022999,2]
[313342597,1707179441348,-282276.04801118,0.00023,2]
[313342615,1707179443022,-2810.68262043,0.00023,2]
[313342620,1707179443078,-1891.03644079,0.00023,2]
[313342622,1707179443138,-5989.05504298,0.00023,2]
[313342623,1707179443194,-712.7053038,0.00023,2]
[313342624,1707179443250,-2273.97343902,0.00023,2]
[313342625,1707179445577,200.01,0.00024776,120]
[313342629,1707179445981,-457.16083985,0.00023,2]
[313342636,1707179446039,-400.037,0.00023,2]
[313342644,1707179446467,-4378.51184603,0.00023,2]
[313342646,1707179446483,-547.28982238,0.00023,2]
[313342648,1707179446495,-370.29818201,0.00023,2]
[313342651,1707179446506,-2498.21253978,0.00023,2]
[313342652,1707179446518,-2119.69814074,0.00023,2]
[313342653,1707179446529,-2446.41042115,0.00023,2]
[313342654,1707179446551,-311.06120837,0.00022999,2]
[313342655,1707179446564,-3577.71237087,0.00022999,2]
[313342656,1707179446588,-379.80612017,0.00022999,2]